[Event "Early-Titled-Tuesday-Blitz-April-16-2024"]
[Site "Chess.com"]
[Date "2024.04.16"]
[Round "1"]
[White "Alexchess1984"]
[Black "Dzidzik2203"]
[Result "0-1"]
[WhiteElo "2688"]
[BlackElo "2419"]
[TimeControl "180+1"]
[EndTime "8:07:49 PDT"]
[Termination "Dzidzik2203 won by checkmate"]

1. e4 {[%clk 0:03:00.9]} 1... c5 {[%clk 0:02:59.7]} 2. c3 {[%clk 0:02:59.3]}
2... d6 {[%clk 0:02:55.4]} 3. d4 {[%clk 0:02:56.6]} 3... Nf6 {[%clk 0:02:55.5]}
4. Bd3 {[%clk 0:02:54.6]} 4... Nc6 {[%clk 0:02:54.7]} 5. Nf3 {[%clk 0:02:53.4]}
5... Bg4 {[%clk 0:02:54.6]} 6. Be3 {[%clk 0:02:46.2]} 6... g6 {[%clk 0:02:48.8]}
7. O-O {[%clk 0:02:45.6]} 7... Bg7 {[%clk 0:02:48.4]} 8. h3 {[%clk 0:02:45.5]}
8... Bxf3 {[%clk 0:02:48.5]} 9. Qxf3 {[%clk 0:02:46.1]} 9... cxd4 {[%clk
0:02:48.6]} 10. cxd4 {[%clk 0:02:45.5]} 10... Nd7 {[%clk 0:02:48.6]} 11. Bc4
{[%clk 0:02:26.3]} 11... O-O {[%clk 0:02:47.6]} 12. Rd1 {[%clk 0:02:25.8]} 12...
Rc8 {[%clk 0:02:42.5]} 13. Bf1 {[%clk 0:02:19.9]} 13... e5 {[%clk 0:02:41]} 14.
dxe5 {[%clk 0:02:17.6]} 14... dxe5 {[%clk 0:02:37.6]} 15. Nc3 {[%clk 0:02:16.4]}
15... Nd4 {[%clk 0:02:37.9]} 16. Bxd4 {[%clk 0:02:15.2]} 16... exd4 {[%clk
0:02:37.9]} 17. Nd5 {[%clk 0:02:15.9]} 17... Ne5 {[%clk 0:02:36.2]} 18. Qa3
{[%clk 0:02:13.3]} 18... Re8 {[%clk 0:02:24.3]} 19. Bb5 {[%clk 0:02:11.6]} 19...
Re6 {[%clk 0:02:19.5]} 20. Rac1 {[%clk 0:02:04.5]} 20... a6 {[%clk 0:02:15.2]}
21. Ba4 {[%clk 0:01:43.2]} 21... b5 {[%clk 0:02:11.3]} 22. Bb3 {[%clk
0:01:37.3]} 22... Bf8 {[%clk 0:02:11.2]} 23. Rxc8 {[%clk 0:01:26.7]} 23... Qxc8
{[%clk 0:02:11]} 24. Qa5 {[%clk 0:01:26.6]} 24... Rc6 {[%clk 0:01:55.3]} 25. Qd2
{[%clk 0:01:10.9]} 25... Bc5 {[%clk 0:01:36.9]} 26. f4 {[%clk 0:01:06.5]} 26...
Nc4 {[%clk 0:01:32.1]} 27. Bxc4 {[%clk 0:00:54.3]} 27... bxc4 {[%clk 0:01:32.2]}
28. Kh1 {[%clk 0:00:54.6]} 28... d3 {[%clk 0:01:32.5]} 29. b3 {[%clk 0:00:54]}
29... Qe6 {[%clk 0:01:23.9]} 30. bxc4 {[%clk 0:00:47.1]} 30... Qxe4 {[%clk
0:01:22.9]} 31. Qxd3 {[%clk 0:00:47.6]} 31... f5 {[%clk 0:01:15.1]} 32. Qxe4
{[%clk 0:00:45.9]} 32... fxe4 {[%clk 0:01:16]} 33. Re1 {[%clk 0:00:46.1]} 33...
e3 {[%clk 0:01:16.3]} 34. Nxe3 {[%clk 0:00:39.7]} 34... Bxe3 {[%clk 0:01:16.3]}
35. Rxe3 {[%clk 0:00:40.3]} 35... Rxc4 {[%clk 0:01:17.2]} 36. Re6 {[%clk
0:00:37.9]} 36... Ra4 {[%clk 0:01:16.2]} 37. Re2 {[%clk 0:00:31.8]} 37... Rxf4
{[%clk 0:01:16.2]} 38. Kh2 {[%clk 0:00:31.6]} 38... Ra4 {[%clk 0:01:15.3]} 39.
Kg3 {[%clk 0:00:31.9]} 39... Kf7 {[%clk 0:01:15.7]} 40. Kf3 {[%clk 0:00:31.8]}
40... Kf6 {[%clk 0:01:15.7]} 41. Ke3 {[%clk 0:00:31.8]} 41... h5 {[%clk
0:01:14.7]} 42. Kd3 {[%clk 0:00:31.8]} 42... Kg5 {[%clk 0:01:14.7]} 43. Kc3
{[%clk 0:00:31.8]} 43... Kf4 {[%clk 0:01:12.5]} 44. Kb3 {[%clk 0:00:31.6]} 44...
Re4 {[%clk 0:01:12.6]} 45. Rf2+ {[%clk 0:00:28.3]} 45... Kg3 {[%clk 0:01:12.3]}
46. Rf6 {[%clk 0:00:28.3]} 46... Kxg2 {[%clk 0:01:11.9]} 47. Rxg6+ {[%clk
0:00:28.2]} 47... Kxh3 {[%clk 0:01:12.4]} 48. Rxa6 {[%clk 0:00:28.7]} 48... h4
{[%clk 0:01:12.8]} 49. Rh6 {[%clk 0:00:27.4]} 49... Kg3 {[%clk 0:01:12.5]} 50.
a4 {[%clk 0:00:27.4]} 50... h3 {[%clk 0:01:12.2]} 51. a5 {[%clk 0:00:17]} 51...
h2 {[%clk 0:01:12.2]} 52. a6 {[%clk 0:00:12.7]} 52... Re6 {[%clk 0:01:12.3]} 53.
Rxe6 {[%clk 0:00:07.4]} 53... h1=Q {[%clk 0:01:12.3]} 54. Kb4 {[%clk 0:00:04.5]}
54... Qb1+ {[%clk 0:01:11.6]} 55. Kc5 {[%clk 0:00:04.4]} 55... Qc2+ {[%clk
0:01:11.8]} 56. Kd5 {[%clk 0:00:04.3]} 56... Qb3+ {[%clk 0:01:12]} 57. Ke5
{[%clk 0:00:04.4]} 57... Qc3+ {[%clk 0:01:11.4]} 58. Kd5 {[%clk 0:00:04.1]}
58... Qa5+ {[%clk 0:01:11.7]} 59. Ke4 {[%clk 0:00:03.5]} 59... Qa4+ {[%clk
0:01:11.6]} 60. Ke5 {[%clk 0:00:03.9]} 60... Kf3 {[%clk 0:01:11.5]} 61. Rf6+
{[%clk 0:00:03.7]} 61... Ke3 {[%clk 0:01:11.6]} 62. Rd6 {[%clk 0:00:04]} 62...
Qa5+ {[%clk 0:01:10]} 63. Ke6 {[%clk 0:00:04.1]} 63... Ke4 {[%clk 0:01:10.3]}
64. Kd7 {[%clk 0:00:04.2]} 64... Ke5 {[%clk 0:01:09]} 65. Re6+ {[%clk 0:00:04]}
65... Kd5 {[%clk 0:01:09.2]} 66. Rd6+ {[%clk 0:00:04.4]} 66... Kc5 {[%clk
0:01:09.6]} 67. Rc6+ {[%clk 0:00:04.9]} 67... Kb5 {[%clk 0:01:09.9]} 68. Rh6
{[%clk 0:00:04.6]} 68... Qd2+ {[%clk 0:01:09.8]} 69. Kc8 {[%clk 0:00:03.9]}
69... Qxh6 {[%clk 0:01:08.9]} 70. a7 {[%clk 0:00:04.4]} 70... Qc6+ {[%clk
0:01:07.4]} 71. Kb8 {[%clk 0:00:04.5]} 71... Kb6 {[%clk 0:01:07]} 72. a8=Q
{[%clk 0:00:02.8]} 72... Qc7# {[%clk 0:01:06.8]} 0-1

[Event "Early-Titled-Tuesday-Blitz-April-16-2024"]
[Site "Chess.com"]
[Date "2024.04.16"]
[Round "1"]
[White "Seochesspie"]
[Black "ural58"]
[Result "1-0"]
[WhiteElo "2863"]
[BlackElo "2492"]
[TimeControl "180+1"]
[EndTime "8:07:50 PDT"]
[Termination "Seochesspie won by resignation"]

1. Nf3 {[%clk 0:03:00.9]} 1... d5 {[%clk 0:02:56.3]} 2. e3 {[%clk 0:03:00]} 2...
Nc6 {[%clk 0:02:48.5]} 3. Bb5 {[%clk 0:02:57.6]} 3... a6 {[%clk 0:02:44.3]} 4.
Bxc6+ {[%clk 0:02:57.5]} 4... bxc6 {[%clk 0:02:44.2]} 5. b3 {[%clk 0:02:57.5]}
5... c5 {[%clk 0:02:43.9]} 6. Bb2 {[%clk 0:02:57.2]} 6... f6 {[%clk 0:02:43.4]}
7. d3 {[%clk 0:02:56.8]} 7... e5 {[%clk 0:02:42.9]} 8. Nbd2 {[%clk 0:02:56.8]}
8... Be6 {[%clk 0:02:42.1]} 9. O-O {[%clk 0:02:56.6]} 9... Qd7 {[%clk
0:02:42.1]} 10. e4 {[%clk 0:02:56.4]} 10... c6 {[%clk 0:02:41.2]} 11. Qe2 {[%clk
0:02:53.1]} 11... Ne7 {[%clk 0:02:39.9]} 12. Nb1 {[%clk 0:02:49.5]} 12... h5
{[%clk 0:02:37.4]} 13. Nc3 {[%clk 0:02:48.6]} 13... g5 {[%clk 0:02:34.6]} 14.
Na4 {[%clk 0:02:48.5]} 14... Ng6 {[%clk 0:02:34.2]} 15. Nd2 {[%clk 0:02:40.1]}
15... Rb8 {[%clk 0:02:28.1]} 16. Ba3 {[%clk 0:02:33.1]} 16... c4 {[%clk
0:02:25]} 17. Bxf8 {[%clk 0:02:32.8]} 17... cxd3 {[%clk 0:02:25.1]} 18. Qxd3
{[%clk 0:02:32.8]} 18... Nxf8 {[%clk 0:02:22.9]} 19. Qxa6 {[%clk 0:02:29.4]}
19... Qb7 {[%clk 0:02:16.6]} 20. Qxb7 {[%clk 0:02:28.7]} 20... Rxb7 {[%clk
0:02:17.5]} 21. Nc5 {[%clk 0:02:28.6]} 21... Ra7 {[%clk 0:02:10.8]} 22. a4
{[%clk 0:02:25.2]} 22... Bc8 {[%clk 0:02:08.8]} 23. b4 {[%clk 0:02:19.5]} 23...
Ne6 {[%clk 0:02:02]} 24. Ndb3 {[%clk 0:02:12.2]} 24... Ke7 {[%clk 0:01:57.2]}
25. Nxe6 {[%clk 0:02:11.2]} 25... Bxe6 {[%clk 0:01:56.5]} 26. Nc5 {[%clk
0:02:11.6]} 26... d4 {[%clk 0:01:44.8]} 27. b5 {[%clk 0:01:48.6]} 27... Bc4
{[%clk 0:01:39.1]} 28. b6 {[%clk 0:01:41.1]} 28... Ra5 {[%clk 0:01:30.3]} 29.
Nb7 {[%clk 0:01:29.8]} 29... Ra6 {[%clk 0:01:28.3]} 30. Rfb1 {[%clk 0:01:27.3]}
30... Rb8 {[%clk 0:01:23.5]} 31. Nc5 {[%clk 0:01:22.3]} 31... Raxb6 {[%clk
0:01:21.2]} 32. Rxb6 {[%clk 0:01:22.5]} 32... Rxb6 {[%clk 0:01:21.4]} 33. a5
{[%clk 0:01:22.9]} 33... Rb8 {[%clk 0:01:10.5]} 34. f3 {[%clk 0:01:21.8]} 34...
Kd6 {[%clk 0:01:09.7]} 35. Nd3 {[%clk 0:01:22.1]} 35... Bxd3 {[%clk 0:01:09]}
36. cxd3 {[%clk 0:01:22.2]} 36... Kc7 {[%clk 0:01:09]} 37. h4 {[%clk 0:01:02.6]}
37... gxh4 {[%clk 0:01:08]} 38. Kh2 {[%clk 0:01:00.4]} 38... Rb3 {[%clk
0:01:07.6]} 39. a6 {[%clk 0:01:00.5]} 39... Kb8 {[%clk 0:01:07.8]} 40. Rc1
{[%clk 0:00:53.4]} 40... Rb6 {[%clk 0:01:06.7]} 41. Kh3 {[%clk 0:00:45]} 41...
Rxa6 {[%clk 0:01:06.3]} 42. Kxh4 {[%clk 0:00:45.4]} 42... Kc7 {[%clk 0:01:06.9]}
43. Kxh5 {[%clk 0:00:45.5]} 43... Ra3 {[%clk 0:01:06.8]} 44. Kg6 {[%clk
0:00:45.2]} 44... Rxd3 {[%clk 0:01:06]} 45. Kxf6 {[%clk 0:00:45.7]} 45... Rd2
{[%clk 0:01:05.5]} 46. Kxe5 {[%clk 0:00:43.7]} 46... d3 {[%clk 0:01:05.1]} 47.
g4 {[%clk 0:00:41.6]} 47... Rf2 {[%clk 0:01:04]} 48. f4 {[%clk 0:00:40.9]} 48...
d2 {[%clk 0:01:03.9]} 49. Rd1 {[%clk 0:00:41.1]} 49... c5 {[%clk 0:01:04.1]} 50.
f5 {[%clk 0:00:41.4]} 50... Kc6 {[%clk 0:01:02.1]} 51. g5 {[%clk 0:00:41.3]}
51... Kb5 {[%clk 0:00:53.1]} 52. g6 {[%clk 0:00:41.6]} 52... c4 {[%clk
0:00:53.3]} 53. g7 {[%clk 0:00:27.6]} 53... Rg2 {[%clk 0:00:49.6]} 54. Rxd2
{[%clk 0:00:27.1]} 54... Rxg7 {[%clk 0:00:49.4]} 55. f6 {[%clk 0:00:27.5]} 55...
Rc7 {[%clk 0:00:49.4]} 56. Kf5 {[%clk 0:00:25.9]} 56... c3 {[%clk 0:00:49.7]}
57. Rc2 {[%clk 0:00:26.3]} 57... Kc4 {[%clk 0:00:50]} 58. e5 {[%clk 0:00:26.8]}
58... Kd3 {[%clk 0:00:50.6]} 59. Rc1 {[%clk 0:00:26.4]} 59... Kd2 {[%clk
0:00:50.9]} 60. Rh1 {[%clk 0:00:26.4]} 60... c2 {[%clk 0:00:51.2]} 61. e6 {[%clk
0:00:26.7]} 61... c1=Q {[%clk 0:00:52.1]} 62. Rxc1 {[%clk 0:00:26.4]} 62... Rxc1
{[%clk 0:00:52.9]} 63. e7 {[%clk 0:00:25.5]} 63... Re1 {[%clk 0:00:52.4]} 64.
Kg6 {[%clk 0:00:20.6]} 1-0

[Event "Early-Titled-Tuesday-Blitz-April-16-2024"]
[Site "Chess.com"]
[Date "2024.04.16"]
[Round "1"]
[White "ChadBiryani"]
[Black "Evgeny81"]
[Result "1-0"]
[WhiteElo "2458"]
[BlackElo "2769"]
[TimeControl "180+1"]
[EndTime "8:07:50 PDT"]
[Termination "ChadBiryani won by resignation"]

1. c3 {[%clk 0:02:55]} 1... g6 {[%clk 0:02:59.2]} 2. d4 {[%clk 0:02:53.3]} 2...
Bg7 {[%clk 0:02:59.8]} 3. Bf4 {[%clk 0:02:54]} 3... d6 {[%clk 0:03:00.1]} 4. e3
{[%clk 0:02:53.2]} 4... Nc6 {[%clk 0:03:00.1]} 5. Be2 {[%clk 0:02:53.8]} 5... e5
{[%clk 0:03:00.2]} 6. Bg3 {[%clk 0:02:50.6]} 6... f5 {[%clk 0:03:00.5]} 7. h4
{[%clk 0:02:49.5]} 7... Nf6 {[%clk 0:03:00.4]} 8. h5 {[%clk 0:02:49.4]} 8... O-O
{[%clk 0:03:00]} 9. hxg6 {[%clk 0:02:49.3]} 9... hxg6 {[%clk 0:03:00]} 10. Qb3+
{[%clk 0:02:48]} 10... d5 {[%clk 0:02:51.6]} 11. Bxe5 {[%clk 0:02:44.7]} 11...
Nxe5 {[%clk 0:02:50.9]} 12. dxe5 {[%clk 0:02:44.9]} 12... Ne4 {[%clk 0:02:50.5]}
13. Nf3 {[%clk 0:02:43.4]} 13... c6 {[%clk 0:02:48.8]} 14. Nbd2 {[%clk
0:02:42.2]} 14... Qe7 {[%clk 0:02:43.4]} 15. c4 {[%clk 0:02:41.1]} 15... Be6
{[%clk 0:02:42.1]} 16. Rd1 {[%clk 0:02:25.2]} 16... Rfd8 {[%clk 0:02:34.3]} 17.
cxd5 {[%clk 0:02:18.3]} 17... Bxd5 {[%clk 0:02:31.7]} 18. Bc4 {[%clk 0:02:18.5]}
18... Nc5 {[%clk 0:02:11.2]} 19. Qc3 {[%clk 0:02:07.5]} 19... b5 {[%clk
0:02:04]} 20. Bxd5+ {[%clk 0:02:04.9]} 20... Rxd5 {[%clk 0:02:04.9]} 21. b4
{[%clk 0:01:54.1]} 21... Nd3+ {[%clk 0:02:02]} 22. Ke2 {[%clk 0:01:54.5]} 22...
Rad8 {[%clk 0:01:43.9]} 23. Qxc6 {[%clk 0:01:52.4]} 23... Kf7 {[%clk 0:01:28.7]}
24. Rh7 {[%clk 0:01:22.3]} 24... Nxb4 {[%clk 0:01:21.9]} 25. Qc3 {[%clk
0:01:05.6]} 25... Kg8 {[%clk 0:01:14.3]} 26. Rdh1 {[%clk 0:01:01.2]} 26... Nxa2
{[%clk 0:01:07.7]} 27. Qb3 {[%clk 0:00:57.3]} 27... Nc1+ {[%clk 0:01:07.8]} 28.
Rxc1 {[%clk 0:00:55.1]} 28... Kxh7 {[%clk 0:01:08.7]} 29. Rh1+ {[%clk 0:00:55]}
29... Kg8 {[%clk 0:01:07.8]} 30. e4 {[%clk 0:00:49.3]} 30... fxe4 {[%clk
0:01:04.9]} 31. Nxe4 {[%clk 0:00:49.2]} 31... Qf7 {[%clk 0:00:54.8]} 32. Rh3
{[%clk 0:00:26]} 32... a5 {[%clk 0:00:26.8]} 33. Nfg5 {[%clk 0:00:26]} 33... Qc7
{[%clk 0:00:16.3]} 34. Ne6 {[%clk 0:00:17.3]} 34... Qxe5 {[%clk 0:00:15.2]} 35.
Nxd8 {[%clk 0:00:16.5]} 35... Qxe4+ {[%clk 0:00:15.1]} 36. Re3 {[%clk
0:00:17.1]} 36... Qg4+ {[%clk 0:00:10.8]} 37. Ke1 {[%clk 0:00:14.9]} 37... Qb4+
{[%clk 0:00:08.9]} 38. Qxb4 {[%clk 0:00:14.9]} 38... axb4 {[%clk 0:00:09.8]} 39.
Nc6 {[%clk 0:00:08.9]} 39... Rd6 {[%clk 0:00:05.8]} 40. Nxb4 {[%clk 0:00:08.3]}
40... Bd4 {[%clk 0:00:05.9]} 41. Rf3 {[%clk 0:00:06.3]} 41... Bc5 {[%clk
0:00:05.8]} 42. Nd3 {[%clk 0:00:05.7]} 42... Bd4 {[%clk 0:00:06.1]} 43. Kd2
{[%clk 0:00:05.7]} 43... Kg7 {[%clk 0:00:06.1]} 44. Kc2 {[%clk 0:00:06.3]} 44...
Rc6+ {[%clk 0:00:06.2]} 45. Kb3 {[%clk 0:00:05.9]} 45... Rc3+ {[%clk 0:00:07.1]}
46. Kb4 {[%clk 0:00:06.6]} 46... Bf6 {[%clk 0:00:04.4]} 47. Kxb5 {[%clk
0:00:06.7]} 47... g5 {[%clk 0:00:04.7]} 48. Kb4 {[%clk 0:00:06]} 48... Kg6
{[%clk 0:00:04.6]} 49. Rxf6+ {[%clk 0:00:06]} 49... Kxf6 {[%clk 0:00:05]} 50.
Kxc3 {[%clk 0:00:06.9]} 1-0

[Event "Early-Titled-Tuesday-Blitz-April-16-2024"]
[Site "Chess.com"]
[Date "2024.04.16"]
[Round "1"]
[White "ExchangeAB"]
[Black "Gabrielian_Artur"]
[Result "0-1"]
[WhiteElo "2441"]
[BlackElo "2779"]
[TimeControl "180+1"]
[EndTime "8:07:50 PDT"]
[Termination "Gabrielian_Artur won by resignation"]

1. d4 {[%clk 0:03:00.9]} 1... Nf6 {[%clk 0:02:59.3]} 2. Nf3 {[%clk 0:03:00.7]}
2... g6 {[%clk 0:02:58.9]} 3. c4 {[%clk 0:03:00.7]} 3... Bg7 {[%clk 0:02:58.9]}
4. g3 {[%clk 0:03:01]} 4... O-O {[%clk 0:02:58.7]} 5. Bg2 {[%clk 0:03:01.4]}
5... d6 {[%clk 0:02:59.1]} 6. O-O {[%clk 0:03:02]} 6... c5 {[%clk 0:02:56.3]} 7.
Nc3 {[%clk 0:03:00.6]} 7... Nc6 {[%clk 0:02:55.8]} 8. d5 {[%clk 0:02:59.8]} 8...
Na5 {[%clk 0:02:55.6]} 9. Nd2 {[%clk 0:02:59.5]} 9... e6 {[%clk 0:02:55.2]} 10.
e4 {[%clk 0:02:54.7]} 10... exd5 {[%clk 0:02:54.3]} 11. cxd5 {[%clk 0:02:52.1]}
11... Re8 {[%clk 0:02:50.2]} 12. Re1 {[%clk 0:02:47.9]} 12... a6 {[%clk
0:02:48.5]} 13. a4 {[%clk 0:02:46.7]} 13... Bd7 {[%clk 0:02:46.9]} 14. Nb3
{[%clk 0:02:36]} 14... Nxb3 {[%clk 0:02:45.1]} 15. Qxb3 {[%clk 0:02:35.6]} 15...
Rb8 {[%clk 0:02:44.3]} 16. a5 {[%clk 0:02:35.5]} 16... Ng4 {[%clk 0:02:40.3]}
17. h3 {[%clk 0:02:16.9]} 17... Ne5 {[%clk 0:02:39.3]} 18. Bf4 {[%clk
0:01:50.3]} 18... b5 {[%clk 0:02:15.7]} 19. axb6 {[%clk 0:01:47.5]} 19... Rxb6
{[%clk 0:02:15.1]} 20. Qc2 {[%clk 0:01:46.3]} 20... Qc8 {[%clk 0:01:41.1]} 21.
Na4 {[%clk 0:01:41.3]} 21... Rb4 {[%clk 0:01:38.7]} 22. Kh2 {[%clk 0:01:36.8]}
22... Qb7 {[%clk 0:01:28.2]} 23. Ra2 {[%clk 0:01:14.9]} 23... Rb8 {[%clk
0:01:25.4]} 24. Bxe5 {[%clk 0:01:13.2]} 24... Bxe5 {[%clk 0:01:24.8]} 25. f4
{[%clk 0:01:13.2]} 25... Bd4 {[%clk 0:01:24.2]} 26. e5 {[%clk 0:00:57]} 26...
Bxa4 {[%clk 0:00:43.5]} 27. Rxa4 {[%clk 0:00:57.9]} 27... Rxb2 {[%clk
0:00:43.3]} 28. Qe4 {[%clk 0:00:57.3]} 28... Qb3 {[%clk 0:00:35.4]} 29. Rxa6
{[%clk 0:00:46.2]} 29... Bf2 {[%clk 0:00:34.6]} 30. Rf1 {[%clk 0:00:31.8]} 30...
Qxg3+ {[%clk 0:00:32.9]} 31. Kh1 {[%clk 0:00:32]} 31... R2b4 {[%clk 0:00:22.7]}
32. Qf3 {[%clk 0:00:29.6]} 32... Rxf4 {[%clk 0:00:19.5]} 33. Qxg3 {[%clk
0:00:29.4]} 33... Bxg3 {[%clk 0:00:19.6]} 34. exd6 {[%clk 0:00:26.9]} 34...
Rxf1+ {[%clk 0:00:19.4]} 35. Bxf1 {[%clk 0:00:27.8]} 35... Rd8 {[%clk
0:00:19.4]} 36. Rc6 {[%clk 0:00:25.3]} 36... Bxd6 {[%clk 0:00:19]} 37. Kg2
{[%clk 0:00:25.4]} 37... f5 {[%clk 0:00:19.2]} 38. Bc4 {[%clk 0:00:24.9]} 38...
Kg7 {[%clk 0:00:19.2]} 39. Ra6 {[%clk 0:00:24.9]} 39... Kf6 {[%clk 0:00:19.4]}
40. Kf3 {[%clk 0:00:25.3]} 40... g5 {[%clk 0:00:18.2]} 41. Ra7 {[%clk
0:00:24.8]} 41... h5 {[%clk 0:00:18.3]} 42. Rh7 {[%clk 0:00:24.4]} 42... g4+
{[%clk 0:00:18.7]} 43. Kg2 {[%clk 0:00:24.7]} 43... Kg5 {[%clk 0:00:18.2]} 44.
hxg4 {[%clk 0:00:24.3]} 44... hxg4 {[%clk 0:00:18.3]} 45. Rf7 {[%clk 0:00:20.5]}
45... Rf8 {[%clk 0:00:17.1]} 46. Rd7 {[%clk 0:00:16.2]} 46... Rf6 {[%clk
0:00:17.3]} 47. Bd3 {[%clk 0:00:14.6]} 47... Kf4 {[%clk 0:00:16.8]} 48. Rd8
{[%clk 0:00:12.6]} 48... Ke3 {[%clk 0:00:16.6]} 49. Bc2 {[%clk 0:00:12.6]} 49...
f4 {[%clk 0:00:16.3]} 50. Bd1 {[%clk 0:00:12.1]} 50... f3+ {[%clk 0:00:16.3]}
51. Kf1 {[%clk 0:00:11.8]} 51... g3 {[%clk 0:00:16.9]} 52. Re8+ {[%clk
0:00:12.1]} 52... Kd2 {[%clk 0:00:16.9]} 53. Bxf3 {[%clk 0:00:12.3]} 53... Rxf3+
{[%clk 0:00:16.6]} 54. Kg2 {[%clk 0:00:13.2]} 54... Rf2+ {[%clk 0:00:16.7]} 55.
Kh3 {[%clk 0:00:13.7]} 55... Rh2+ {[%clk 0:00:16.4]} 56. Kg4 {[%clk 0:00:13.4]}
56... g2 {[%clk 0:00:16.9]} 0-1

[Event "Early-Titled-Tuesday-Blitz-April-16-2024"]
[Site "Chess.com"]
[Date "2024.04.16"]
[Round "1"]
[White "lefonghua"]
[Black "SoCalJuniorChess"]
[Result "1-0"]
[WhiteElo "2581"]
[BlackElo "2193"]
[TimeControl "180+1"]
[EndTime "8:07:50 PDT"]
[Termination "lefonghua won by resignation"]

1. d4 {[%clk 0:03:00.9]} 1... Nf6 {[%clk 0:02:57.4]} 2. c4 {[%clk 0:03:01.2]}
2... e5 {[%clk 0:02:56.2]} 3. dxe5 {[%clk 0:03:00.9]} 3... Ng4 {[%clk
0:02:55.1]} 4. Bf4 {[%clk 0:03:01.1]} 4... Nc6 {[%clk 0:02:55]} 5. Nf3 {[%clk
0:03:01.5]} 5... Bb4+ {[%clk 0:02:55.1]} 6. Nbd2 {[%clk 0:03:01.7]} 6... Qe7
{[%clk 0:02:50.8]} 7. e3 {[%clk 0:03:00.8]} 7... a5 {[%clk 0:02:44.8]} 8. Be2
{[%clk 0:02:51.8]} 8... Ncxe5 {[%clk 0:02:44]} 9. Nxe5 {[%clk 0:02:49.5]} 9...
Nxe5 {[%clk 0:02:43.6]} 10. O-O {[%clk 0:02:45.6]} 10... O-O {[%clk 0:02:32.1]}
11. a3 {[%clk 0:02:41.2]} 11... Bc5 {[%clk 0:02:28.3]} 12. b4 {[%clk 0:02:31.2]}
12... axb4 {[%clk 0:02:00.3]} 13. axb4 {[%clk 0:02:32.1]} 13... Rxa1 {[%clk
0:02:00.1]} 14. Qxa1 {[%clk 0:02:32.3]} 14... Ng6 {[%clk 0:01:51.9]} 15. Bxc7
{[%clk 0:02:01.5]} 15... Bxb4 {[%clk 0:01:51.9]} 16. Nf3 {[%clk 0:01:52.8]}
16... d5 {[%clk 0:01:51.5]} 17. Ba5 {[%clk 0:01:47.8]} 17... Be6 {[%clk
0:01:46.6]} 18. Bxb4 {[%clk 0:01:41.9]} 18... Qxb4 {[%clk 0:01:47.5]} 19. Rb1
{[%clk 0:01:40.5]} 19... Qe7 {[%clk 0:01:38.4]} 20. Nd4 {[%clk 0:01:14.6]} 20...
dxc4 {[%clk 0:01:30.9]} 21. Nxe6 {[%clk 0:01:14.8]} 21... Qxe6 {[%clk
0:01:29.9]} 22. Rxb7 {[%clk 0:01:08.5]} 22... Qc6 {[%clk 0:01:26.4]} 23. Qa7
{[%clk 0:00:59.9]} 23... c3 {[%clk 0:01:20.2]} 24. Rc7 {[%clk 0:00:53.3]} 24...
Ra8 {[%clk 0:01:05.7]} 25. Rxc6 {[%clk 0:00:40.9]} 25... Rxa7 {[%clk 0:01:04.6]}
26. Rc8+ {[%clk 0:00:37.7]} 26... Nf8 {[%clk 0:01:03.3]} 27. Rxc3 {[%clk
0:00:38.3]} 27... Ra1+ {[%clk 0:01:02.5]} 28. Bf1 {[%clk 0:00:38.7]} 28... f6
{[%clk 0:00:57.1]} 29. g3 {[%clk 0:00:33.9]} 29... Kf7 {[%clk 0:00:52.6]} 30.
Kg2 {[%clk 0:00:33.9]} 30... g5 {[%clk 0:00:34.4]} 31. Rc7+ {[%clk 0:00:32.7]}
31... Ke6 {[%clk 0:00:26.8]} 32. Bc4+ {[%clk 0:00:30.3]} 32... Kf5 {[%clk
0:00:13.9]} 33. Bd3+ {[%clk 0:00:20.9]} 33... Ke5 {[%clk 0:00:13.3]} 34. Bxh7
{[%clk 0:00:20.9]} 34... Ne6 {[%clk 0:00:11.6]} 35. Re7 {[%clk 0:00:18.3]} 35...
Kd6 {[%clk 0:00:10.8]} 36. Re8 {[%clk 0:00:18.5]} 36... Ng7 {[%clk 0:00:10.5]}
37. Rg8 {[%clk 0:00:17.2]} 37... Ne6 {[%clk 0:00:09.7]} 38. Bf5 {[%clk
0:00:17.4]} 38... Nc5 {[%clk 0:00:09.5]} 39. Rd8+ {[%clk 0:00:17.3]} 39... Ke5
{[%clk 0:00:09.5]} 40. g4 {[%clk 0:00:17.6]} 40... Ra2 {[%clk 0:00:08.8]} 41.
Re8+ {[%clk 0:00:17.4]} 41... Kd6 {[%clk 0:00:08.4]} 42. Rd8+ {[%clk 0:00:17.9]}
42... Ke7 {[%clk 0:00:08.6]} 43. Rc8 {[%clk 0:00:17.4]} 43... Nb3 {[%clk
0:00:08.8]} 44. Rc7+ {[%clk 0:00:16.1]} 44... Kd6 {[%clk 0:00:09.3]} 45. Rd7+
{[%clk 0:00:16.3]} 45... Kc6 {[%clk 0:00:09.3]} 46. Be6 {[%clk 0:00:16.8]} 46...
Nc1 {[%clk 0:00:07.2]} 47. Bxa2 {[%clk 0:00:16.1]} 47... Kxd7 {[%clk 0:00:07.5]}
48. Bc4 {[%clk 0:00:16.7]} 48... Kd6 {[%clk 0:00:07.1]} 49. f4 {[%clk 0:00:16]}
49... gxf4 {[%clk 0:00:06.8]} 50. exf4 {[%clk 0:00:16.1]} 50... Kc5 {[%clk
0:00:07.7]} 51. Bf1 {[%clk 0:00:15.7]} 51... Kd4 {[%clk 0:00:08.6]} 52. Kf3
{[%clk 0:00:15.4]} 52... Nb3 {[%clk 0:00:08.2]} 53. h4 {[%clk 0:00:13.9]} 53...
Nd2+ {[%clk 0:00:08.5]} 54. Ke2 {[%clk 0:00:14.3]} 54... Ne4 {[%clk 0:00:09.2]}
55. Bg2 {[%clk 0:00:14.8]} 55... Ng3+ {[%clk 0:00:09.2]} 56. Kf3 {[%clk
0:00:15.1]} 1-0